[Event "FRA-ch Open A-D 2018"]
[Site "Nimes"]
[Date "2018.08.18"]
[Round "1"]
[White "Flouret, Jean-Frederie"]
[Black "Perrin, Yves"]
[Result "0-1"]
[ECO "C00"]
[WhiteElo "1630"]
[BlackElo "1755"]
[Annotator "NA RC"]
[PlyCount "68"]
[EventDate "2018.08.18"]
[EventType "tourn"]
[EventCountry "FRA"]
[SourceTitle "playchess.com"]
[Source "ChessBase"]
[SourceQuality "1"]
[TimeControl "40/5400+30:1800+30"]

1. e4 {[%emt 0:00:00]} e6 {[%emt 0:00:00]} 2. d4 {[%emt 0:00:25]} c5 {[%emt 0:00:54]} 3. Nf3 {[%emt 0:02:07]} Qb6 {[%emt 0:03:46]} 4. d5 {[%emt 0:06:02]} Nf6 {[%emt 0:03:25]} 5. dxe6 {[%emt 0:05:55]} dxe6 {[%emt 0:06:58]} 6. Nc3 {[%emt 0:08:14]} a6 {[%emt 0:10:13]} 7. Bc4 {[%emt 0:03:49]} Qb4 {[%emt 0:05:31]} 8. Qe2 {[%emt 0:07:08]} b5 {[%emt 0:06:16]} 9. Bb3 {[%emt 0:09:01]} c4 {[%emt 0:08:07]} 10. a3 {[%emt 0:00:30]} Qa5 {[%emt 0:00:53]} 11. Ba2 {[%emt 0:03:33]} Bb7 {[%emt 0:02:37]} 12. Bd2 {[%emt 0:01:44]} Qc7 {[%emt 0:04:56]} 13. O-O {[%emt 0:10:53]} Nbd7 {[%emt 0:03:17]} 14. Ng5 {[%emt 0:03:25]} h6 {[%emt 0:05:06]} 15. Nh3 {[%emt 0:00:28]} g5 {[%emt 0:01:49]} 16. f3 {[%emt 0:02:55]} Bd6 {[%emt 0:02:31]} 17. g3 {[%emt 0:03:44]} Rg8 {[%emt 0:03:51]} 18. Kh1 {[%emt 0:01:28]} Nh5 {[%emt 0:01:41]} 19. f4 {[%emt 0:03:20]} g4 {[%emt 0:03:46]} 20. Nf2 {[%emt 0:04:02]} Nhf6 {[%emt 0:00:49]} 21. Kg1 {[%emt 0:03:13]} Bc5 {[%emt 0:01:13]} 22. Be3 {[%emt 0:04:29]} h5 {[%emt 0:01:36]} 23. Rad1 {[%emt 0:02:00]} h4 {[%emt 0:01:28]} 24. f5 {[%emt 0:02:05]} hxg3 {[%emt 0:02:29]} 25. Nh1 {[%emt 0:03:16]} gxh2+ {[%emt 0:01:26]} 26. Kg2 {[%emt 0:00:21]} Nxe4 {[%emt 0:00:47]} 27. Nxe4 {[%emt 0:00:55]} Bxe4+ {[%emt 0:00:12]} 28. Kf2 {[%emt 0:00:19]} g3+ {[%emt 0:00:37]} 29. Ke1 {[%emt 0:00:36]} g2 {[%emt 0:00:48]} 30. fxe6 {[%emt 0:01:13]} fxe6 {[%emt 0:02:35]} 31. Qh5+ {[%emt 0:02:01]} Bg6 {[%emt 0:00:28]} 32. Qf3 {[%emt 0:01:23]} gxf1=Q+ 33. Qxf1 {[%emt 0:00:43]} Qe5 {[%emt 0:01:42]} 34. Qf4 {[%emt 0:01:11]} Qxe3+ {[%emt 0:00:30]} 0-1

[Event "FRA-ch Open A-D 2018"]
[Site "Nimes"]
[Date "2018.08.18"]
[Round "1"]
[White "Koch, Emilie"]
[Black "Leglise, Michel"]
[Result "1-0"]
[ECO "C50"]
[WhiteElo "1498"]
[BlackElo "1263"]
[Annotator "NA RC"]
[PlyCount "69"]
[EventDate "2018.08.18"]
[EventType "tourn"]
[EventCountry "FRA"]
[SourceTitle "playchess.com"]
[Source "ChessBase"]
[SourceQuality "1"]
[TimeControl "40/5400+30:1800+30"]

1. e4 {[%emt 0:00:00]} e5 {[%emt 0:00:00]} 2. Nf3 {[%emt 0:00:05]} Nc6 {[%emt 0:00:35]} 3. Bc4 {[%emt 0:00:24]} h6 {[%emt 0:01:11]} 4. d3 {[%emt 0:01:24]} d6 {[%emt 0:03:37]} 5. c3 {[%emt 0:04:22]} a6 {[%emt 0:01:35]} 6. a4 {[%emt 0:01:36]} Bd7 {[%emt 0:01:48]} 7. Be3 {[%emt 0:11:13]} Na5 {[%emt 0:00:53]} 8. Ba2 {[%emt 0:01:43]} b5 {[%emt 0:02:35]} 9. axb5 {[%emt 0:01:44]} Bxb5 {[%emt 0:00:38]} 10. Bxf7+ {[%emt 0:10:52]} Kxf7 {[%emt 0:00:45]} 11. Rxa5 {[%emt 0:00:40]} c6 {[%emt 0:01:36]} 12. Ra2 {[%emt 0:03:08]} c5 {[%emt 0:01:19]} 13. O-O {[%emt 0:12:28]} Nf6 {[%emt 0:00:54]} 14. Nh4 {[%emt 0:02:48]} g5 {[%emt 0:02:00]} 15. Nf5 {[%emt 0:01:51]} c4 {[%emt 0:02:08]} 16. d4 {[%emt 0:06:32]} Nxe4 {[%emt 0:00:29]} 17. Qh5+ {[%emt 0:01:28]} Ke6 {[%emt 0:01:36]} 18. Qg4 {[%emt 0:07:38]} Kd5 {[%emt 0:04:06]} 19. Qf3 {[%emt 0:02:36]} Qf6 {[%emt 0:02:56]} 20. Nd2 {[%emt 0:01:29]} Bd7 {[%emt 0:02:31]} 21. Qxe4+ {[%emt 0:01:01]} Ke6 {[%emt 0:00:39]} 22. Qxa8 {[%emt 0:03:20]} Qxf5 {[%emt 0:00:42]} 23. Rxa6 {[%emt 0:02:22]} Bg7 {[%emt 0:01:00]} 24. Qf3 {[%emt 0:04:08]} Qxf3 {[%emt 0:04:13]} 25. Nxf3 {[%emt 0:00:22]} Rb8 {[%emt 0:00:28]} 26. Rb1 {[%emt 0:07:12]} Kd5 27. dxe5 dxe5 {[%emt 0:03:52]} 28. Rd1+ {[%emt 0:02:05]} Ke4 {[%emt 0:00:35]} 29. Rxd7 {[%emt 0:01:14]} Rxb2 {[%emt 0:00:35]} 30. h3 {[%emt 0:00:38]} Bf8 {[%emt 0:00:31]} 31. Re6 {[%emt 0:00:42]} Kf5 {[%emt 0:01:59]} 32. Rxe5+ {[%emt 0:01:37]} Kg6 {[%emt 0:01:01]} 33. Re8 {[%emt 0:02:46]} Bg7 {[%emt 0:00:35]} 34. Ne5+ {[%emt 0:01:50]} Kf6 {[%emt 0:00:28]} 35. Rf7# 1-0

[Event "FRA-ch Open A-D 2018"]
[Site "Nimes"]
[Date "2018.08.18"]
[Round "1"]
[White "Candela, Leo Thierry"]
[Black "Petit, Michel"]
[Result "1-0"]
[ECO "A02"]
[WhiteElo "1496"]
[BlackElo "1258"]
[Annotator "NA RC"]
[PlyCount "67"]
[EventDate "2018.08.18"]
[EventType "tourn"]
[EventCountry "FRA"]
[SourceTitle "playchess.com"]
[Source "ChessBase"]
[SourceQuality "1"]
[TimeControl "40/5400+30:1800+30"]

1. f4 {[%emt 0:00:00]} Nc6 {[%emt 0:00:24]} 2. e3 {[%emt 0:01:38]} d5 {[%emt 0:00:51]} 3. Nf3 {[%emt 0:00:56]} Bg4 {[%emt 0:00:31]} 4. Be2 {[%emt 0:00:29]} Nf6 {[%emt 0:02:31]} 5. O-O {[%emt 0:00:24]} Qd7 {[%emt 0:01:22]} 6. d4 {[%emt 0:02:34]} a6 {[%emt 0:03:11]} 7. c3 {[%emt 0:01:04]} b5 {[%emt 0:03:51]} 8. a3 {[%emt 0:05:50]} h6 {[%emt 0:05:04]} 9. Nbd2 {[%emt 0:01:35]} Qe6 {[%emt 0:02:17]} 10. Ne5 {[%emt 0:02:00]} Bxe2 {[%emt 0:01:02]} 11. Qxe2 {[%emt 0:00:13]} Nxe5 {[%emt 0:02:28]} 12. fxe5 {[%emt 0:00:09]} Nd7 {[%emt 0:02:10]} 13. Qf3 {[%emt 0:04:41]} c6 {[%emt 0:02:30]} 14. Qg3 {[%emt 0:04:37]} O-O-O {[%emt 0:01:18]} 15. a4 {[%emt 0:01:20]} Nb8 {[%emt 0:02:40]} 16. Nb3 {[%emt 0:01:40]} Qg6 {[%emt 0:02:15]} 17. Qf4 {[%emt 0:01:22]} f6 {[%emt 0:04:14]} 18. e6 {[%emt 0:00:58]} Rd6 {[%emt 0:01:08]} 19. Nc5 {[%emt 0:00:24]} Qe8 {[%emt 0:01:28]} 20. axb5 {[%emt 0:02:45]} cxb5 {[%emt 0:00:48]} 21. b3 {[%emt 0:01:05]} Qc6 {[%emt 0:01:52]} 22. Ba3 {[%emt 0:00:31]} Rxe6 {[%emt 0:03:50]} 23. Qf5 {[%emt 0:01:23]} Nd7 {[%emt 0:07:57]} 24. Nxe6 {[%emt 0:01:03]} g6 {[%emt 0:01:06]} 25. Qh3 {[%emt 0:01:35]} f5 {[%emt 0:00:35]} 26. Nxf8 {[%emt 0:00:32]} Nxf8 {[%emt 0:00:39]} 27. Bxe7 {[%emt 0:00:19]} Ne6 {[%emt 0:01:02]} 28. Bf6 {[%emt 0:00:34]} Rh7 {[%emt 0:01:05]} 29. Qg3 {[%emt 0:00:34]} Qe8 {[%emt 0:02:44]} 30. Rxa6 {[%emt 0:00:24]} Qf7 {[%emt 0:01:17]} 31. Ra8+ {[%emt 0:00:48]} Kd7 {[%emt 0:00:57]} 32. Ra7+ {[%emt 0:00:13]} Ke8 {[%emt 0:01:48]} 33. Qb8+ {[%emt 0:00:22]} Nd8 {[%emt 0:00:32]} 34. Qxd8# 1-0

[Event "FRA-ch Open A-D 2018"]
[Site "Nimes"]
[Date "2018.08.18"]
[Round "1"]
[White "Navarro, Vincent"]
[Black "Pujals, Ines"]
[Result "1-0"]
[ECO "B54"]
[WhiteElo "1262"]
[BlackElo "1498"]
[Annotator "NA RC"]
[PlyCount "109"]
[EventDate "2018.08.18"]
[EventType "tourn"]
[EventCountry "FRA"]
[SourceTitle "playchess.com"]
[Source "ChessBase"]
[SourceQuality "1"]
[TimeControl "40/5400+30:1800+30"]

1. e4 {[%emt 0:00:00]} c5 {[%emt 0:00:00]} 2. Nf3 {[%emt 0:00:00]} d6 {[%emt 0:00:00]} 3. d4 {[%emt 0:00:31]} cxd4 {[%emt 0:00:00]} 4. Nxd4 {[%emt 0:01:42]} g6 {[%emt 0:00:02]} 5. c4 {[%emt 0:04:07]} Bg7 {[%emt 0:00:13]} 6. Be3 {[%emt 0:00:58]} Nc6 {[%emt 0:00:57]} 7. Nc3 {[%emt 0:01:53]} Nf6 {[%emt 0:00:19]} 8. a3 {[%emt 0:03:44]} a5 {[%emt 0:03:46]} 9. Be2 {[%emt 0:02:03]} Bd7 {[%emt 0:00:51]} 10. O-O {[%emt 0:06:43]} O-O {[%emt 0:01:20]} 11. Rc1 {[%emt 0:02:30]} Nxd4 {[%emt 0:06:40]} 12. Bxd4 {[%emt 0:02:24]} Bc6 {[%emt 0:02:20]} 13. Qc2 {[%emt 0:05:16]} Rc8 {[%emt 0:07:24]} 14. Rfd1 {[%emt 0:03:23]} Nd7 {[%emt 0:02:41]} 15. Be3 {[%emt 0:06:06]} Qc7 {[%emt 0:07:03]} 16. Nd5 {[%emt 0:05:12]} Bxd5 {[%emt 0:06:26]} 17. exd5 {[%emt 0:03:48]} Ne5 {[%emt 0:05:19]} 18. b3 {[%emt 0:03:18]} b5 {[%emt 0:05:54]} 19. f4 {[%emt 0:02:57]} Nd7 {[%emt 0:01:32]} 20. Bf2 {[%emt 0:13:23]} Nb6 {[%emt 0:02:02]} 21. Rd2 {[%emt 0:06:02]} Qb7 {[%emt 0:09:48]} 22. Qe4 {[%emt 0:01:28]} Rc7 {[%emt 0:05:52]} 23. Rdc2 {[%emt 0:01:41]} Rfc8 {[%emt 0:01:11]} 24. Bf3 {[%emt 0:05:47]} bxc4 {[%emt 0:05:52]} 25. bxc4 {[%emt 0:01:58]} Bh6 {[%emt 0:01:14]} 26. Rb1 {[%emt 0:04:16]} Rxc4 {[%emt 0:05:18]} 27. Rxc4 {[%emt 0:01:55]} Rxc4 {[%emt 0:00:05]} 28. Qxc4 {[%emt 0:00:58]} Nxc4 {[%emt 0:01:41]} 29. Rxb7 {[%emt 0:00:07]} Bxf4 {[%emt 0:00:20]} 30. Rb8+ {[%emt 0:02:12]} Kg7 {[%emt 0:00:09]} 31. Bd4+ {[%emt 0:00:21]} f6 {[%emt 0:01:31]} 32. g4 {[%emt 0:01:20]} Nxa3 {[%emt 0:01:12]} 33. h4 {[%emt 0:01:04]} h6 {[%emt 0:00:04]} 34. Be4 {[%emt 0:01:39]} Nc4 {[%emt 0:00:40]} 35. h5 {[%emt 0:01:15]} g5 {[%emt 0:01:24]} 36. Bg6 {[%emt 0:01:39]} a4 {[%emt 0:00:05]} 37. Re8 {[%emt 0:00:33]} Ne5 {[%emt 0:04:02]} 38. Rxe7+ {[%emt 0:00:44]} Kf8 {[%emt 0:00:07]} 39. Re8+ {[%emt 0:00:54]} Kg7 {[%emt 0:00:10]} 40. Bxe5 {[%emt 0:01:26]} fxe5 {[%emt 0:01:17]} 41. Kf2 {[%emt 0:31:39]} a3 {[%emt 0:30:43]} 42. Bb1 {[%emt 0:00:50]} Bc1 {[%emt 0:02:43]} 43. Ba2 {[%emt 0:00:24]} Kf6 {[%emt 0:00:25]} 44. Kf3 {[%emt 0:00:38]} Bd2 {[%emt 0:01:36]} 45. Ke4 {[%emt 0:00:26]} Bb4 {[%emt 0:00:23]} 46. Kd3 {[%emt 0:01:10]} Kf7 {[%emt 0:00:37]} 47. Re6 {[%emt 0:00:00]} Kg7 {[%emt 0:00:00]} 48. Ke4 {[%emt 0:00:00]} Bc5 {[%emt 0:00:00]} 49. Kf5 {[%emt 0:00:00]} Bb4 {[%emt 0:00:00]} 50. Re7+ {[%emt 0:00:00]} Kg8 {[%emt 0:00:00]} 51. Kg6 {[%emt 0:00:00]} Kf8 {[%emt 0:00:00]} 52. Re6 {[%emt 0:00:00]} Bc5 {[%emt 0:00:00]} 53. Kxh6 {[%emt 0:00:00]} Kf7 {[%emt 0:00:00]} 54. Kxg5 {[%emt 0:00:00]} Be3+ {[%emt 0:00:00]} 55. Kf5 {[%emt 0:00:00]} 1-0

[Event "FRA-ch Open A-D 2018"]
[Site "Nimes"]
[Date "2018.08.18"]
[Round "1"]
[White "Wolfangel, Jocelyne"]
[Black "Brun, Michel"]
[Result "0-1"]
[ECO "A17"]
[WhiteElo "1256"]
[BlackElo "1491"]
[Annotator "NA RC"]
[PlyCount "92"]
[EventDate "2018.08.18"]
[EventType "tourn"]
[EventCountry "FRA"]
[SourceTitle "playchess.com"]
[Source "ChessBase"]
[SourceQuality "1"]
[TimeControl "40/5400+30:1800+30"]

1. c4 Nf6 {[%emt 0:00:00]} 2. Nc3 e6 3. g3 {[%emt 0:01:23]} d5 {[%emt 0:00:52]} 4. cxd5 {[%emt 0:00:50]} Nxd5 {[%emt 0:00:29]} 5. Bg2 {[%emt 0:00:46]} Nxc3 {[%emt 0:01:09]} 6. bxc3 {[%emt 0:00:13]} c6 {[%emt 0:02:32]} 7. Nf3 {[%emt 0:02:43]} Bd6 {[%emt 0:02:14]} 8. O-O {[%emt 0:01:28]} O-O {[%emt 0:01:51]} 9. d3 {[%emt 0:07:52]} h6 {[%emt 0:03:06]} 10. Rb1 {[%emt 0:13:03]} Nd7 {[%emt 0:04:04]} 11. d4 {[%emt 0:04:01]} Rb8 {[%emt 0:06:17]} 12. e4 {[%emt 0:01:09]} b5 {[%emt 0:14:41]} 13. e5 {[%emt 0:01:55]} Be7 {[%emt 0:01:38]} 14. Be3 {[%emt 0:12:03]} c5 {[%emt 0:07:18]} 15. Re1 {[%emt 0:14:16]} cxd4 {[%emt 0:16:16]} 16. Nxd4 {[%emt 0:04:02]} Nxe5 {[%emt 0:21:32]} 17. Rxb5 {[%emt 0:13:21]} Rxb5 {[%emt 0:01:51]} 18. Nxb5 {[%emt 0:00:12]} Qxd1 {[%emt 0:00:51]} 19. Rxd1 {[%emt 0:00:13]} a6 {[%emt 0:03:01]} 20. Nd4 {[%emt 0:06:16]} Rd8 {[%emt 0:02:15]} 21. Re1 {[%emt 0:05:03]} Bf6 {[%emt 0:03:41]} 22. Rc1 {[%emt 0:04:56]} Nc4 {[%emt 0:01:16]} 23. Bf1 {[%emt 0:03:25]} Nxe3 {[%emt 0:00:09]} 24. fxe3 {[%emt 0:00:09]} e5 {[%emt 0:01:17]} 25. Nc6 {[%emt 0:00:43]} Rd6 {[%emt 0:00:38]} 26. Nb4 {[%emt 0:00:32]} a5 {[%emt 0:00:25]} 27. Nc2 {[%emt 0:00:48]} Rd2 {[%emt 0:02:32]} 28. a3 {[%emt 0:00:55]} Bf5 {[%emt 0:00:30]} 29. Ne1 {[%emt 0:00:49]} Ra2 {[%emt 0:00:44]} 30. c4 {[%emt 0:00:35]} Rxa3 {[%emt 0:00:25]} 31. Bg2 {[%emt 0:00:37]} Rxe3 {[%emt 0:00:31]} 32. Nf3 {[%emt 0:00:48]} e4 {[%emt 0:00:33]} 33. Nh4 {[%emt 0:00:27]} Bxh4 {[%emt 0:00:30]} 34. gxh4 {[%emt 0:00:04]} Bd7 {[%emt 0:01:07]} 35. c5 {[%emt 0:00:43]} Bc6 {[%emt 0:00:26]} 36. Kf2 {[%emt 0:00:22]} Rd3 {[%emt 0:00:29]} 37. Ke2 {[%emt 0:00:57]} f5 {[%emt 0:00:11]} 38. Rb1 {[%emt 0:00:34]} Rc3 {[%emt 0:00:40]} 39. Rb8+ {[%emt 0:00:11]} Kf7 {[%emt 0:00:36]} 40. Rb2 {[%emt 0:01:00]} Rxc5 {[%emt 0:00:15]} 41. Ke3 {[%emt 0:30:30]} a4 {[%emt 0:30:45]} 42. Kd4 {[%emt 0:00:29]} a3 {[%emt 0:00:52]} 43. Ra2 {[%emt 0:00:26]} Ra5 {[%emt 0:00:00]} 44. Bf1 {[%emt 0:00:00]} Bd5 {[%emt 0:00:00]} 45. Rf2 {[%emt 0:00:00]} a2 {[%emt 0:00:00]} 46. Rxf5+ {[%emt 0:00:00]} Kg6 {[%emt 0:00:00]} 0-1

[Event "FRA-ch Open A-D 2018"]
[Site "Nimes"]
[Date "2018.08.19"]
[Round "2"]
[White "Girardon, Jerome"]
[Black "Guazzelli, Jean-Baptiste"]
[Result "1-0"]
[ECO "B27"]
[WhiteElo "2186"]
[BlackElo "2090"]
[Annotator "NA"]
[PlyCount "61"]
[EventDate "2018.08.18"]
[EventType "tourn"]
[EventCountry "FRA"]
[SourceTitle "playchess.com"]
[Source "ChessBase"]
[SourceQuality "1"]
[TimeControl "40/5400+30:1800+30"]

1. e4 {[%emt 0:00:00]} c5 {[%emt 0:00:00]} 2. Nf3 {[%emt 0:00:13]} g6 {[%emt 0:00:00]} 3. d4 {[%emt 0:10:11]} cxd4 {[%emt 0:00:00]} 4. Nxd4 {[%emt 0:00:14]} Bg7 {[%emt 0:00:26]} 5. Nb3 {[%emt 0:00:09]} Nc6 {[%emt 0:01:36]} 6. Be2 {[%emt 0:02:31]} Nf6 {[%emt 0:01:27]} 7. Nc3 {[%emt 0:00:08]} O-O {[%emt 0:00:56]} 8. g4 {[%emt 0:00:18]} d6 {[%emt 0:05:14]} 9. g5 {[%emt 0:02:18]} Ne8 {[%emt 0:02:39]} 10. Be3 {[%emt 0:04:57]} Be6 {[%emt 0:01:44]} 11. h4 {[%emt 0:11:07]} Nc7 {[%emt 0:07:55]} 12. f4 {[%emt 0:09:08]} d5 {[%emt 0:05:46]} 13. e5 {[%emt 0:00:19]} b6 {[%emt 0:12:38]} 14. h5 {[%emt 0:10:45]} Qd7 {[%emt 0:02:17]} 15. Qd2 {[%emt 0:05:33]} Rab8 {[%emt 0:10:58]} 16. O-O-O {[%emt 0:00:35]} a5 {[%emt 0:01:34]} 17. hxg6 {[%emt 0:06:58]} hxg6 {[%emt 0:02:15]} 18. Nb5 {[%emt 0:00:38]} a4 {[%emt 0:11:45]} 19. N3d4 {[%emt 0:00:44]} Nxd4 {[%emt 0:02:09]} 20. Nxd4 {[%emt 0:01:40]} b5 {[%emt 0:01:55]} 21. Bd3 {[%emt 0:00:32]} Rfc8 {[%emt 0:03:24]} 22. Qh2 {[%emt 0:01:37]} b4 {[%emt 0:12:04]} 23. f5 {[%emt 0:01:22]} gxf5 {[%emt 0:00:39]} 24. g6 {[%emt 0:02:31]} fxg6 {[%emt 0:10:59]} 25. Qh7+ {[%emt 0:00:43]} Kf8 {[%emt 0:00:06]} 26. Bh6 {[%emt 0:00:25]} Ne8 {[%emt 0:00:29]} 27. Qxg6 {[%emt 0:01:57]} Bg8 {[%emt 0:02:03]} 28. e6 {[%emt 0:00:54]} Qc7 {[%emt 0:00:30]} 29. Bxg7+ {[%emt 0:00:16]} Nxg7 {[%emt 0:00:01]} 30. Rh8 {[%emt 0:00:22]} Qf4+ {[%emt 0:00:50]} 31. Kb1 {[%emt 0:00:08]} 1-0

[Event "FRA-ch Open A-D 2018"]
[Site "Nimes"]
[Date "2018.08.19"]
[Round "2"]
[White "Daurelle, Herve"]
[Black "Defromont, Benjamin"]
[Result "1-0"]
[ECO "C04"]
[WhiteElo "2181"]
[BlackElo "2080"]
[Annotator "NA"]
[PlyCount "105"]
[EventDate "2018.08.18"]
[EventType "tourn"]
[EventCountry "FRA"]
[SourceTitle "playchess.com"]
[Source "ChessBase"]
[SourceQuality "1"]
[TimeControl "40/5400+30:1800+30"]

1. e4 {[%emt 0:00:00]} e6 {[%emt 0:00:04]} 2. d4 {[%emt 0:00:00]} d5 {[%emt 0:00:50]} 3. Nd2 {[%emt 0:00:00]} Nc6 {[%emt 0:01:47]} 4. Ngf3 {[%emt 0:00:26]} Nf6 {[%emt 0:01:37]} 5. e5 {[%emt 0:00:17]} Nd7 {[%emt 0:00:40]} 6. Nb3 {[%emt 0:00:12]} a5 {[%emt 0:01:28]} 7. a4 {[%emt 0:00:13]} Be7 {[%emt 0:01:21]} 8. h4 {[%emt 0:07:01]} h6 {[%emt 0:22:30]} 9. Bf4 {[%emt 0:05:06]} b6 {[%emt 0:05:35]} 10. g4 {[%emt 0:13:59]} Nf8 {[%emt 0:09:12]} 11. Qd2 {[%emt 0:12:30]} Nb4 {[%emt 0:10:52]} 12. c3 {[%emt 0:04:45]} Ba6 {[%emt 0:00:28]} 13. Bxa6 {[%emt 0:07:56]} Nxa6 {[%emt 0:00:42]} 14. Kf1 {[%emt 0:06:12]} c5 {[%emt 0:05:49]} 15. Kg2 {[%emt 0:00:24]} c4 {[%emt 0:05:34]} 16. Nc1 {[%emt 0:00:06]} h5 {[%emt 0:05:56]} 17. g5 {[%emt 0:01:23]} Ng6 {[%emt 0:07:53]} 18. Ne2 {[%emt 0:01:08]} Qd7 {[%emt 0:01:17]} 19. Rhb1 {[%emt 0:04:30]} Bd8 {[%emt 0:04:53]} 20. b4 {[%emt 0:02:25]} cxb3 {[%emt 0:00:41]} 21. Rxb3 {[%emt 0:00:09]} Rc8 {[%emt 0:01:00]} 22. Qd3 {[%emt 0:03:13]} Nb8 {[%emt 0:04:33]} 23. Bc1 {[%emt 0:02:04]} Ne7 {[%emt 0:02:09]} 24. Rb5 {[%emt 0:04:58]} g6 {[%emt 0:01:41]} 25. Ba3 {[%emt 0:00:28]} Kf8 {[%emt 0:01:40]} 26. Bxe7+ {[%emt 0:06:58]} Qxe7 {[%emt 0:00:07]} 27. Nd2 {[%emt 0:01:31]} Qd7 {[%emt 0:00:45]} 28. f4 {[%emt 0:05:11]} Kg7 {[%emt 0:00:26]} 29. Qf3 {[%emt 0:01:00]} Bc7 {[%emt 0:01:54]} 30. f5 {[%emt 0:02:38]} exf5 {[%emt 0:00:07]} 31. Nf4 {[%emt 0:00:01]} Qc6 {[%emt 0:01:16]} 32. Nxd5 {[%emt 0:01:05]} Bd8 {[%emt 0:00:23]} 33. c4 {[%emt 0:01:46]} Re8 {[%emt 0:00:21]} 34. Rab1 {[%emt 0:00:54]} Nd7 {[%emt 0:00:36]} 35. Kg1 {[%emt 0:02:14]} Nf8 {[%emt 0:00:37]} 36. Nf6 {[%emt 0:00:26]} Bxf6 {[%emt 0:00:24]} 37. gxf6+ {[%emt 0:00:33]} Kg8 {[%emt 0:00:30]} 38. Qxc6 {[%emt 0:01:08]} Rxc6 {[%emt 0:00:01]} 39. Rxb6 {[%emt 0:00:11]} Rxb6 {[%emt 0:00:27]} 40. Rxb6 {[%emt 0:00:02]} Ne6 {[%emt 0:00:13]} 41. Nf3 {[%emt 0:33:20]} Rc8 {[%emt 0:08:00]} 42. d5 {[%emt 0:00:00]} Nf4 {[%emt 0:02:46]} 43. e6 {[%emt 0:00:00]} fxe6 {[%emt 0:00:48]} 44. dxe6 {[%emt 0:00:00]} Nxe6 {[%emt 0:00:47]} 45. Rxe6 {[%emt 0:00:00]} Rxc4 {[%emt 0:00:08]} 46. Re8+ {[%emt 0:00:00]} Kf7 {[%emt 0:00:39]} 47. Ne5+ {[%emt 0:00:00]} Kxe8 {[%emt 0:00:05]} 48. Nxc4 {[%emt 0:00:00]} Kf7 {[%emt 0:00:02]} 49. Nxa5 {[%emt 0:00:00]} Kxf6 {[%emt 0:00:10]} 50. Nc4 {[%emt 0:00:00]} Ke6 {[%emt 0:02:05]} 51. a5 {[%emt 0:00:00]} Kd7 {[%emt 0:00:20]} 52. Ne5+ {[%emt 0:00:00]} Kc8 {[%emt 0:00:16]} 53. Nxg6 {[%emt 0:00:00]} 1-0

[Event "FRA-ch Open A-D 2018"]
[Site "Nimes"]
[Date "2018.08.19"]
[Round "2"]
[White "Deveque, Guillaume"]
[Black "Giacomini, Hector"]
[Result "0-1"]
[ECO "D60"]
[WhiteElo "2087"]
[BlackElo "2196"]
[Annotator "NA"]
[PlyCount "81"]
[EventDate "2018.08.18"]
[EventType "tourn"]
[EventCountry "FRA"]
[SourceTitle "playchess.com"]
[Source "ChessBase"]
[SourceQuality "1"]
[TimeControl "40/5400+30:1800+30"]

1. Nf3 {[%emt 0:00:00]} d5 {[%emt 0:00:00]} 2. c4 {[%emt 0:00:00]} e6 {[%emt 0:00:00]} 3. d4 {[%emt 0:01:02]} Nf6 {[%emt 0:00:01]} 4. Bg5 {[%emt 0:03:35]} Be7 {[%emt 0:00:16]} 5. Nc3 {[%emt 0:00:33]} O-O {[%emt 0:00:19]} 6. e3 {[%emt 0:03:34]} Nbd7 {[%emt 0:00:27]} 7. cxd5 {[%emt 0:00:29]} exd5 {[%emt 0:00:08]} 8. Rc1 {[%emt 0:01:32]} c6 {[%emt 0:00:47]} 9. Bd3 {[%emt 0:00:27]} Re8 {[%emt 0:00:22]} 10. Bb1 {[%emt 0:09:12]} Nf8 {[%emt 0:00:57]} 11. Ne5 {[%emt 0:02:08]} N6d7 {[%emt 0:03:14]} 12. Bf4 {[%emt 0:03:41]} Nxe5 {[%emt 0:03:14]} 13. Bxe5 {[%emt 0:02:17]} Bd6 {[%emt 0:01:20]} 14. Bxd6 {[%emt 0:05:06]} Qxd6 {[%emt 0:00:05]} 15. O-O {[%emt 0:00:05]} Bd7 {[%emt 0:04:27]} 16. Qc2 {[%emt 0:14:40]} Re7 {[%emt 0:09:48]} 17. Rfe1 {[%emt 0:23:49]} Rae8 {[%emt 0:03:31]} 18. Qa4 {[%emt 0:00:03]} a6 {[%emt 0:01:30]} 19. Qa5 {[%emt 0:00:12]} f5 {[%emt 0:07:07]} 20. Qc5 {[%emt 0:05:18]} Qf6 {[%emt 0:05:57]} 21. a4 {[%emt 0:04:19]} f4 {[%emt 0:14:34]} 22. e4 {[%emt 0:01:14]} Ne6 {[%emt 0:00:16]} 23. Qd6 {[%emt 0:09:34]} Nxd4 {[%emt 0:01:49]} 24. Qxf6 {[%emt 0:00:17]} gxf6 {[%emt 0:00:05]} 25. Rcd1 {[%emt 0:06:53]} Nf5 {[%emt 0:03:20]} 26. Kf1 {[%emt 0:01:15]} f3 {[%emt 0:04:56]} 27. gxf3 {[%emt 0:00:37]} Nh4 {[%emt 0:00:35]} 28. Re3 {[%emt 0:01:13]} Bh3+ {[%emt 0:01:42]} 29. Ke2 {[%emt 0:00:02]} Ng2 {[%emt 0:00:44]} 30. Rg1 {[%emt 0:00:02]} Kf8 {[%emt 0:00:10]} 31. Rxg2 {[%emt 0:00:44]} Bxg2 {[%emt 0:00:12]} 32. exd5 {[%emt 0:01:03]} Bh3 {[%emt 0:01:09]} 33. dxc6 {[%emt 0:00:55]} bxc6 {[%emt 0:00:06]} 34. Ne4 {[%emt 0:00:15]} Bf5 {[%emt 0:02:11]} 35. Bd3 {[%emt 0:00:28]} Bxe4 {[%emt 0:00:26]} 36. fxe4 {[%emt 0:00:05]} Rb8 {[%emt 0:01:33]} 37. Bxa6 {[%emt 0:00:58]} Rxb2+ {[%emt 0:00:07]} 38. Kf3 {[%emt 0:00:19]} Ra7 {[%emt 0:00:18]} 39. Bf1 {[%emt 0:00:58]} Rxa4 {[%emt 0:00:16]} 40. Rc3 {[%emt 0:00:04]} Raa2 41. Rc1 0-1